bitfinex-derivatives/quotes_ETHF0:USTF0_20250604
["timestamp","ask_amount","ask_price","bid_price","bid_amount"]
[1749077261009,0.96329557,2607.8,2607.7,22.81253]
[1749077261406,1.72979557,2607.8,2607.7,22.81253]
[1749077261800,0.96329557,2607.8,2607.7,22.81253]
[1749077262213,0.96329557,2607.8,2607.7,0.76653]
[1749077262410,0.96329557,2607.8,2607.7,5.28853]
[1749077263410,1.72979557,2607.8,2607.7,5.28853]
[1749077264408,0.96329557,2607.8,2607.7,5.28853]
[1749077265611,1.72979557,2607.8,2607.7,5.28853]
[1749077266808,0.96329557,2607.8,2607.7,5.28853]
[1749077267818,0.96329557,2607.8,2607.7,6.54423]
[1749077270021,1.72979557,2607.8,2607.7,6.54423]
[1749077270318,0.96329557,2607.8,2607.7,6.61154476]
[1749077271218,4.93759557,2607.8,2607.7,0.06731476]
[1749077271424,12.42256557,2607.8,2607.4,0.3834]
[1749077271627,3.97439,2607.5,2607.4,0.3834]
[1749077271920,4.93768557,2607.5,2607.4,0.3834]
[1749077272620,2.33488557,2607.5,2607.4,0.3834]
[1749077273523,1.37159,2607.5,2607.4,0.3834]
[1749077273721,1.56854124,2607.5,2607.4,1.15002]
[1749077274022,2.33513124,2607.5,2607.4,1.15002]
[1749077275825,1.56854124,2607.5,2607.4,1.15002]
[1749077276427,0.96354124,2607.5,2607.4,1.15002]
[1749077276729,0.96354124,2607.5,2607.4,5.22042]
[1749077278025,1.40887,2607.6,2607.5,0.76659]
[1749077278225,2.37240452,2607.6,2607.5,0.76659]
[1749077279021,0.76659,2607.5,2607.4,5.2204]
[1749077279220,1.73012452,2607.5,2607.4,3.9744]
[1749077279629,1.73012452,2607.5,2607.4,8.4944]
[1749077280128,0.96353452,2607.5,2607.4,8.4944]
[1749077281230,0.96353452,2607.5,2607.4,3.9744]
[1749077281433,0.96353452,2607.5,2607.4,26.0194]
[1749077282125,1.2509,2607.8,2607.7,0.76653]
[1749077282126,0.6438,2607.8,2607.7,0.76653]
[1749077282326,2.37465305,2607.8,2607.7,0.76653]
[1749077282529,2.37465305,2607.8,2607.5,1.6011]
[1749077282530,1.60815305,2607.8,2607.6,0.76653]
[1749077282732,0.96435305,2607.7,2607.6,0.76656]
[1749077283419,1.73088305,2607.7,2607.6,0.76656]
[1749077284028,1.73088305,2607.7,2607.5,1.3083]
[1749077284029,0.76656,2607.6,2607.5,2.07487]
[1749077284232,1.73093305,2607.6,2607.5,5.28659]
[1749077284427,1.73093305,2607.6,2607.5,22.81159]
[1749077284731,0.96435305,2607.6,2607.5,22.81159]
[1749077285232,1.41032,2607.8,2607.7,0.76653]
[1749077285429,2.3750312,2607.8,2607.7,0.76653]
[1749077287429,1.6085112,2607.8,2607.7,0.76653]
[1749077288432,2.3750112,2607.8,2607.7,0.76653]
[1749077289133,1.6085112,2607.8,2607.7,0.76653]
[1749077289337,0.9647112,2607.8,2607.7,0.76653]
[1749077290036,0.9647112,2607.8,2607.7,5.29983]
[1749077292143,0.6222,2608.1,2608.0,0.76644]
[1749077292345,0.96524479,2608.1,2608.0,8.49424]
[1749077295542,0.638,2608.3,2608.2,0.76638]
[1749077295744,1.60340961,2608.3,2608.2,0.76638]
[1749077295942,1.40435,2608.3,2608.2,0.76638]
[1749077296143,2.36994708,2608.3,2608.2,0.76638]
[1749077296544,1.60359708,2608.3,2608.2,0.76638]
[1749077296938,2.36994708,2608.3,2608.2,0.76638]
[1749077297442,1.60359708,2608.3,2608.2,0.76638]
[1749077297746,2.36994708,2608.3,2608.2,0.76638]
[1749077297947,1.60359708,2608.3,2608.2,0.76638]
[1749077298139,2.36994708,2608.3,2608.2,0.76638]
[1749077298342,1.60359708,2608.3,2608.2,0.76638]
[1749077298541,1.60359708,2608.3,2608.0,9.64389]
[1749077298542,0.76641,2608.2,2608.1,0.7664]
[1749077298947,1.40437,2608.3,2608.2,0.76638]
[1749077299146,2.36949098,2608.3,2608.2,0.76638]
[1749077300647,2.36949098,2608.3,2608.2,18.28738]
[1749077301139,2.36947098,2608.3,2608.2,22.038]
[1749077301446,0.76638,2608.2,2608.1,0.7664]
[1749077301635,1.73153749,2608.2,2608.1,5.2844]
[1749077301833,0.96515749,2608.2,2608.1,22.8044]
[1749077302033,0.76638,2608.2,2608.1,22.038]
[1749077302243,0.96517086,2608.2,2608.1,22.80439]
[1749077302444,1.40437,2608.3,2608.2,0.76638]
[1749077302649,0.76638,2608.2,2608.1,22.8044]
[1749077302841,1.73186519,2608.2,2608.1,22.8044]
[1749077303046,0.96548519,2608.2,2608.1,22.8044]
[1749077303242,0.7664,2608.2,2608.1,0.76639]
[1749077303448,1.73210672,2608.2,2608.1,22.80439]
[1749077303639,0.96570672,2608.2,2608.1,22.80439]
[1749077303946,0.96570672,2608.2,2608.1,0.76639]
[1749077304143,0.96570672,2608.2,2608.1,22.80339]
[1749077304742,1.40437,2608.3,2608.2,0.76638]
[1749077304944,2.37008292,2608.3,2608.2,0.76638]
[1749077307254,1.60371292,2608.3,2608.2,0.76638]
[1749077307752,2.37006292,2608.3,2608.2,0.76638]
[1749077309162,1.40435,2608.3,2608.2,0.76638]
[1749077309348,1.60383649,2608.3,2608.2,0.76638]
[1749077309550,2.37018649,2608.3,2608.2,0.76638]
[1749077310157,1.60383649,2608.3,2608.2,0.76638]
[1749077311356,2.37018649,2608.3,2608.2,0.76638]
[1749077311857,2.37018649,2608.3,2608.0,3.2078]
[1749077311858,0.76641,2608.1,2608.0,3.2078]
[1749077312062,1.73224649,2608.1,2608.0,7.7258]
[1749077312651,1.73224649,2608.1,2608.0,8.49224]
[1749077313154,0.96583649,2608.1,2608.0,8.49224]
[1749077313554,1.2518,2608.2,2608.1,0.76641]
[1749077313749,2.21529406,2608.2,2608.1,0.76641]
[1749077314652,2.98167406,2608.2,2608.1,0.76641]
[1749077315554,1.72987406,2608.2,2608.1,0.76641]
[1749077316151,3.02687406,2608.2,2608.1,0.76641]
[1749077321360,0.76641,2608.1,2608.0,8.49222]
[1749077321551,1.72990406,2608.1,2608.0,8.49222]
[1749077322060,0.96349406,2608.1,2608.0,8.49222]
[1749077322461,1.72990406,2608.1,2608.0,8.49224]
[1749077322762,1.73871403,2608.1,2608.0,8.49224]
[1749077322962,0.97230403,2608.1,2608.0,8.49224]
[1749077326459,0.97230403,2608.1,2608.0,9.70504]
[1749077326766,0.638,2608.3,2608.2,0.76638]
[1749077327161,1.61037302,2608.3,2608.2,0.76638]
[1749077328863,0.97237302,2608.3,2608.2,0.76638]
[1749077329566,0.97237302,2608.3,2608.2,2.09828]
[1749077329968,0.97237302,2608.3,2608.2,19.61428]
[1749077332663,1.37599,2608.5,2608.4,0.76632]
[1749077332866,2.34769715,2608.5,2608.4,5.28232]
[1749077333061,1.58140715,2608.5,2608.4,5.28232]
[1749077336171,1.58337066,2608.5,2608.4,5.28232]
[1749077336374,1.58337066,2608.5,2608.4,22.79732]
[1749077338077,1.58337066,2608.5,2608.4,5.28232]
[1749077338272,1.58337066,2608.5,2608.4,22.79632]
[1749077338469,2.34966066,2608.5,2608.4,22.79632]
[1749077338777,1.58337066,2608.5,2608.4,22.79632]
[1749077340571,1.37599,2608.5,2608.4,22.79632]
[1749077340773,2.34916739,2608.5,2608.4,22.79632]
[1749077341069,1.58287739,2608.5,2608.4,22.79632]
[1749077341265,2.34916739,2608.5,2608.4,22.79632]
[1749077341470,1.58287739,2608.5,2608.4,22.79632]
[1749077341671,2.34916739,2608.5,2608.4,22.79632]
[1749077341868,1.58287739,2608.5,2608.4,22.79632]
[1749077342279,2.34916739,2608.5,2608.4,22.79632]
[1749077343184,1.58287739,2608.5,2608.4,22.79632]
[1749077348876,1.58287739,2608.5,2608.4,22.79432]
[1749077354187,1.58393925,2608.5,2608.4,22.79432]
[1749077355482,0.97423925,2608.5,2608.4,22.79432]
[1749077356185,0.7720102,2608.6,2608.5,0.76629]
[1749077356384,1.74682883,2608.6,2608.5,0.76629]
[1749077357086,0.98055883,2608.6,2608.5,0.76629]
[1749077357281,1.74681883,2608.6,2608.5,18.27629]
[1749077358686,1.74683877,2608.6,2608.5,18.27629]
[1749077360685,1.74683877,2608.6,2608.5,4.513]
[1749077360881,0.76635,2608.3,2608.2,3.2078]
[1749077361083,1.74118857,2608.3,2608.2,3.2078]
[1749077361780,3.63898857,2608.3,2608.2,3.97418]
[1749077362888,1.58343857,2608.3,2608.2,3.97418]
[1749077363084,1.58282869,2608.3,2608.2,3.97418]
[1749077363288,0.97422869,2608.3,2608.2,3.97418]
[1749077363690,0.97422869,2608.3,2608.2,5.29808]
[1749077364388,0.97422869,2608.3,2608.2,10.29808]
[1749077364591,0.0057402,2608.6,2608.5,0.76629]
[1749077364781,0.0057402,2608.6,2608.5,8.48709]
[1749077365288,0.97996875,2608.6,2608.5,9.74469]
[1749077366191,0.0057402,2608.6,2608.5,9.74469]
[1749077367590,0.6153,2609.0,2608.9,0.76617]
[1749077367779,2.3477228,2609.0,2608.9,5.27917]
[1749077367984,2.3477228,2609.0,2608.9,4.513]
[1749077368386,2.3477228,2609.0,2608.9,5.27917]
[1749077368692,2.3477228,2609.0,2608.9,4.513]
[1749077369492,2.3477228,2609.0,2608.9,5.27917]
[1749077369686,1.5815828,2609.0,2608.9,5.27917]
[1749077371985,1.58076524,2609.0,2608.9,5.27917]
[1749077375397,0.76617,2608.9,2608.8,3.2078]
[1749077375694,3.00783524,2608.9,2608.8,7.7198]
[1749077376394,3.00658504,2608.9,2608.8,7.7198]
[1749077377401,3.00658504,2608.9,2608.8,8.486]
[1749077379898,0.96421504,2608.9,2608.8,8.486]
[1749077383008,0.00575153,2609.2,2609.1,0.76611]
[1749077383201,0.00575153,2609.2,2609.1,3.97391]
[1749077383410,0.00575153,2609.2,2609.1,3.2078]
[1749077383605,0.76611,2609.1,2609.0,4.512]
[1749077384004,1.40171,2609.1,2609.0,4.512]
[1749077384216,2.73581,2609.1,2609.0,4.512]
[1749077386111,2.73581,2609.1,2609.0,5.27814]
[1749077387318,2.73581,2609.1,2609.0,4.512]
[1749077391310,1.40171,2609.1,2609.0,5.27814]
[1749077391712,1.40171,2609.1,2609.0,4.512]
[1749077393618,2.62241,2609.1,2609.0,4.512]
[1749077395014,3.58477889,2609.1,2609.0,4.512]
[1749077395413,3.58477889,2609.1,2608.7,4.51675153]
[1749077395414,0.7662,2608.8,2608.7,4.51675153]
[1749077395910,1.72856889,2608.8,2608.7,0.00575153]
[1749077396118,3.58546889,2608.8,2608.7,0.00575153]
[1749077396819,8.58546889,2608.8,2608.7,0.00575153]
[1749077397018,0.76626,2608.6,2608.5,0.3834]
[1749077397213,4.93642889,2608.6,2608.5,0.3834]
[1749077397617,6.15482889,2608.6,2608.5,0.3834]
[1749077398017,5.38856889,2608.6,2608.2,3.2078]
[1749077398218,0.76641,2608.1,2608.0,27.693]
[1749077398417,0.76641,2608.1,2608.0,4.511]
[1749077398619,1.72820973,2608.1,2608.0,4.511]
[1749077400831,1.72820973,2608.1,2608.0,5.27744]
[1749077401030,1.72601273,2608.1,2608.0,5.27744]
[1749077401535,0.76641,2608.1,2608.0,6.61194]
[1749077403235,0.76641,2608.1,2608.0,5.8455]
[1749077404439,1.406,2608.2,2608.0,6.61191]
[1749077404635,0.76641,2608.1,2608.0,6.61191]
[1749077406329,0.95837055,2608.1,2608.0,6.61191]
[1749077406639,0.76639,2608.2,2608.1,0.76639]
[1749077407441,0.76641,2608.1,2608.0,6.61192]
[1749077407642,0.76641,2608.1,2608.0,4.511]
[1749077407938,1.72473656,2608.1,2608.0,4.511]
[1749077408835,1.72473656,2608.1,2608.0,5.27744]
[1749077409744,0.7664,2608.2,2608.1,0.76641]
[1749077410142,1.72451947,2608.2,2608.1,5.27841]
[1749077410746,1.72451947,2608.2,2608.1,4.512]
[1749077411043,1.72451947,2608.2,2608.1,5.27841]
[1749077412146,0.95811947,2608.2,2608.1,5.27841]
[1749077412446,0.76637,2608.3,2608.2,0.76638]
[1749077413341,0.76638,2608.2,2608.1,4.512]
[1749077413844,1.72504307,2608.2,2608.1,5.27841]
[1749077415946,1.72504307,2608.2,2608.1,4.512]
[1749077416942,1.72504307,2608.2,2608.1,5.27841]
[1749077417246,1.72504307,2608.2,2608.1,4.512]
[1749077418437,0.76658,2607.6,2607.4,0.3834]
[1749077418637,0.76652,2607.7,2607.6,0.3834]
[1749077418845,0.76664,2607.3,2607.2,27.691]
[1749077419045,0.76673,2607.0,2606.9,4.511]
[1749077419444,1.72472009,2607.0,2606.9,4.511]
[1749077420252,1.7241407,2607.0,2606.9,4.511]
[1749077420854,0.76673,2607.0,2606.9,4.511]
[1749077421353,4.93186612,2607.0,2606.9,4.511]
[1749077421544,4.93186612,2607.0,2606.6,4.511]
[1749077421545,0.76684,2606.7,2606.6,4.511]
[1749077423946,0.76685,2606.6,2606.4,3.2078]
[1749077424145,0.76685,2606.6,2606.5,4.512]
[1749077424445,0.76685,2606.6,2606.5,5.27888]
[1749077424645,0.76688,2606.5,2606.4,4.512]
[1749077424846,2.06568,2606.5,2606.4,4.512]
[1749077425448,0.76693,2606.4,2606.3,4.512]
[1749077425644,2.0657,2606.5,2606.3,5.27894]
[1749077425856,0.76691,2606.4,2606.3,5.27894]
[1749077426148,1.2988,2606.5,2606.1,5.4818]
[1749077426149,1.2988,2606.5,2606.1,7.7198]
[1749077426353,0.76694,2606.3,2606.2,0.76694]
[1749077426740,3.2078,2606.7,2606.1,9.0516]
[1749077426941,0.00575153,2606.7,2606.6,0.76685]
[1749077427148,0.00575153,2606.7,2606.6,5.27885]
[1749077427954,0.77257153,2606.7,2606.6,4.512]
[1749077428656,0.00575153,2606.7,2606.6,0.76685]
[1749077428954,0.00575153,2606.7,2606.6,5.27885]
[1749077429152,0.77257153,2606.7,2606.6,4.512]
[1749077429656,0.00575153,2606.7,2606.6,5.27885]
[1749077430251,0.77257153,2606.7,2606.6,5.27985]
[1749077430552,0.00575153,2606.7,2606.6,5.27985]
[1749077432156,0.77257153,2606.7,2606.6,4.513]
[1749077433453,0.00575153,2606.7,2606.6,5.27985]
[1749077434158,0.77257153,2606.7,2606.6,4.513]
[1749077434654,0.77257153,2606.7,2606.6,5.27985]
[1749077434850,0.76685,2606.6,2606.5,4.513]
[1749077435252,0.76688,2606.5,2606.4,3.2078]
[1749077435454,0.76697,2606.2,2606.1,3.2078]
[1749077435648,0.76697,2606.2,2606.1,7.7208]
[1749077435848,0.76695,2606.3,2606.1,7.7208]
[1749077436059,0.6311,2606.5,2606.1,7.7208]
[1749077436254,0.76692,2606.4,2606.3,0.76692]
[1749077436749,1.39799,2606.5,2606.4,0.76691]
[1749077436953,3.14352153,2606.7,2606.6,0.76685]
[1749077436954,0.00575153,2606.7,2606.6,0.76685]
[1749077437167,0.00575153,2606.7,2606.6,5.27985]
[1749077438863,0.76688,2606.5,2606.4,9.0274]
[1749077439062,0.76687,2606.6,2606.5,0.76687]
[1749077439256,0.76688,2606.5,2606.4,9.79429]
[1749077439762,0.76688,2606.5,2606.4,9.0274]
[1749077439960,0.76687,2606.6,2606.5,0.76687]
[1749077440856,0.76687,2606.6,2606.5,0.76688]
[1749077441258,0.61375153,2606.7,2606.4,9.0274]
[1749077441457,0.76688,2606.5,2606.4,7.7208]
[1749077441656,0.76688,2606.5,2606.4,4.513]
[1749077443969,0.76694,2606.3,2606.2,0.76695]
[1749077444269,0.76694,2606.3,2606.2,5.27995]
[1749077444566,0.61375153,2606.7,2606.2,4.513]
[1749077444567,0.00575153,2606.7,2606.2,4.513]
[1749077444766,0.00575153,2606.7,2606.3,4.5126]
[1749077445071,0.76691,2606.4,2606.3,5.27952]
[1749077445264,0.76691,2606.4,2606.3,7.7208]
[1749077445569,0.76691,2606.4,2606.3,4.513]
[1749077446570,0.76699,2606.1,2606.0,3.5912]
[1749077446764,0.76699,2606.1,2606.0,8.1042]
[1749077447869,0.76708,2605.8,2605.7,3.5912]
[1749077448176,0.76711,2605.7,2605.6,4.513]
[1749077448364,1.9739,2606.0,2605.6,5.28012]
[1749077448563,0.95664212,2605.9,2605.6,4.513]
[1749077448764,0.76711,2605.7,2605.6,4.513]
[1749077448966,1.72375212,2605.7,2605.6,4.513]
[1749077449166,0.95664212,2605.7,2605.4,26.4018]
[1749077449373,0.76714,2605.6,2605.5,5.34517]
[1749077449569,0.76713,2605.7,2605.6,0.76714]
[1749077449768,1.42221,2605.8,2605.6,0.76714]
[1749077450081,0.6551,2605.8,2605.7,0.76711]
[1749077450261,0.6645,2606.0,2605.5,4.578]
[1749077450464,1.72329336,2605.9,2605.7,3.2078]
[1749077450668,1.43153,2606.0,2605.7,3.2078]
[1749077450964,0.76704,2606.0,2605.7,3.2078]
[1749077451170,0.76704,2606.0,2605.8,1.3299]
[1749077451477,0.6405,2606.2,2605.9,5.34504]
[1749077451677,1.72284344,2606.1,2605.9,5.34504]
[1749077451974,0.76702,2606.0,2605.9,4.578]
[1749077452169,1.91749,2606.1,2605.7,3.2078]
[1749077452371,0.76705,2605.9,2605.8,4.578]
[1749077452570,0.76714,2605.6,2605.5,4.578]
[1749077452976,0.76717,2605.5,2605.4,23.194]
[1749077453275,0.76726,2605.2,2605.1,4.578]
[1749077453469,1.72227939,2605.2,2605.1,4.578]
[1749077453778,1.72227939,2605.2,2604.7,0.3834]
[1749077453779,0.76735,2604.9,2604.8,4.578]
[1749077454176,1.43666153,2605.1,2604.9,0.76734]
[1749077454371,0.76735,2604.9,2604.8,4.578]
[1749077454571,0.76733,2605.0,2604.8,5.34537]
[1749077454783,0.76735,2604.9,2604.8,4.578]
[1749077455170,0.76738,2604.8,2604.7,3.5918]
[1749077455368,0.76738,2604.8,2604.7,8.1698]
[1749077455570,0.76738,2604.8,2604.7,7.7858]
[1749077455770,0.66935153,2605.1,2604.7,7.7858]
[1749077455771,0.76736,2604.9,2604.7,3.2078]
[1749077456080,0.66935153,2605.1,2605.0,0.76732]
[1749077456278,2.38916739,2605.1,2604.8,4.578]
[1749077456475,1.43665153,2605.1,2604.9,0.76733]
[1749077456679,1.43665153,2605.1,2605.0,0.53722083]
[1749077456883,0.66935153,2605.1,2605.0,1.30272159]
[1749077457070,0.66935153,2605.1,2604.9,0.76733]
[1749077457274,1.43666153,2605.1,2605.0,0.384]
[1749077457572,1.43664153,2605.1,2605.0,1.15132]
[1749077457977,1.43664153,2605.1,2605.0,0.384]
[1749077458170,1.43664153,2605.1,2605.0,4.963]
[1749077458368,1.43664153,2605.1,2605.0,5.49820702]
[1749077458571,1.43664153,2605.1,2605.0,4.963]
[1749077458771,1.43664153,2605.1,2605.0,5.73032]
[1749077459069,1.43664153,2605.1,2605.0,6.26587879]
[1749077459274,1.43664153,2605.1,2605.0,4.963]
[1749077459472,1.43664153,2605.1,2605.0,5.49855812]
[1749077459771,0.66935153,2605.1,2605.0,5.73032]
[1749077460374,0.00575153,2605.1,2605.0,8.93812]
[1749077460880,0.00575153,2605.1,2605.0,8.55412]
[1749077462676,0.00575153,2605.1,2605.0,9.09285562]
[1749077462881,0.00575153,2605.1,2605.0,8.55412]
[1749077463181,11.14647,2605.5,2605.4,0.7672]
[1749077463377,10.3793,2605.5,2605.4,5.3472]
[1749077463973,9.724,2605.5,2605.4,5.3472]
[1749077466280,10.49117,2605.5,2605.4,5.3472]
[1749077466685,0.76715,2605.6,2605.5,0.76717]
[1749077467890,0.76717,2605.5,2605.4,5.34718]
[1749077468280,0.76717,2605.5,2605.4,4.58]
[1749077468587,0.76717,2605.5,2605.4,5.3472]
[1749077468979,0.76716,2605.6,2605.5,0.76716]
[1749077469183,0.00575153,2605.7,2605.4,4.58]
[1749077469380,0.00575153,2605.7,2605.6,0.76714]
[1749077470288,0.77286153,2605.7,2605.6,0.76714]
[1749077470494,0.77286153,2605.7,2605.4,5.9064]
[1749077470495,0.76716,2605.6,2605.5,0.76717]
[1749077471091,0.77288153,2605.7,2605.6,0.76714]
[1749077471393,0.00575153,2605.7,2605.6,0.76714]
[1749077471590,0.77286153,2605.7,2605.6,0.76714]
[1749077473188,0.76717,2605.6,2605.5,0.76716]
[1749077473491,0.00575153,2605.7,2605.6,0.76714]
[1749077474899,0.76714,2605.6,2605.5,1.99305]
[1749077475193,0.76714,2605.6,2605.5,5.34717]
[1749077475892,0.6453,2605.6,2605.5,5.34717]
[1749077479097,0.00575153,2605.7,2605.6,0.76714]
[1749077479596,0.00575153,2605.7,2605.6,5.25444]
[1749077479789,0.00575153,2605.7,2605.6,5.91254]
[1749077482897,9.724,2606.0,2605.9,0.76705]
[1749077483095,1.40845,2606.3,2606.2,0.76697]
[1749077483298,2.36655884,2606.3,2606.2,0.76697]
[1749077484002,1.59960884,2606.3,2606.2,0.76697]
[1749077484390,0.64115153,2606.5,2606.4,0.76691]
[1749077484590,1.28815153,2606.5,2606.4,5.34291]
[1749077487301,0.65275153,2606.5,2606.4,5.34291]
[1749077487797,0.00575153,2606.5,2606.4,5.34291]
[1749077488796,9.724,2607.2,2607.0,0.76673]
[1749077489007,11.10229,2607.2,2607.0,0.76673]
[1749077489198,4.4917,2607.1,2607.0,0.76673]
[1749077490806,10.3356,2607.2,2607.1,0.7667]
[1749077491103,11.648,2607.2,2607.1,0.7667]
[1749077492199,12.41469,2607.2,2607.1,0.7667]
[1749077492699,12.41467,2607.2,2607.1,0.7667]
[1749077493305,11.648,2607.2,2607.1,0.7667]
[1749077493602,12.41467,2607.2,2607.1,0.7667]
[1749077494204,11.648,2607.2,2607.1,0.7667]
[1749077494408,12.41467,2607.2,2607.0,0.76672]
[1749077494598,1.2162,2607.1,2607.0,0.76672]
[1749077494806,1.9829,2607.1,2607.0,0.76672]
[1749077495101,1.2162,2607.1,2607.0,0.76672]
[1749077495301,1.9829,2607.1,2607.0,0.76672]
[1749077496094,1.98292,2607.1,2607.0,0.76673]
[1749077497406,1.2162,2607.1,2607.0,0.76673]
[1749077498003,10.3356,2607.2,2607.1,0.7667]
[1749077498599,0.76671,2607.1,2607.0,0.76671]
[1749077499104,12.32309,2607.2,2607.1,0.7667]
[1749077499306,11.5564,2607.2,2606.9,7.7838]
[1749077499904,0.76671,2607.1,2607.0,0.7667]
[1749077500104,1.98751,2607.1,2607.0,0.7667]
[1749077502900,9.724,2607.2,2607.1,0.7667]
[1749077503100,0.00575153,2607.3,2607.2,0.76667]
[1749077503301,0.00575153,2607.3,2607.2,3.97447]
[1749077503504,3.28085,2608.0,2607.4,1.91648]
[1749077503700,3.28085,2608.0,2607.1,3.83348]
[1749077503701,2.5144,2608.0,2607.8,0.76648]
[1749077503900,3.28084,2608.0,2607.9,4.574]
[1749077507213,7.5144,2608.0,2607.3,4.573]
[1749077507502,0.76661,2607.4,2607.3,4.573]
[1749077508405,0.76661,2607.4,2607.3,5.33964]
[1749077508901,2.01221,2607.4,2607.3,5.33964]
[1749077509505,2.01221,2607.4,2607.3,4.573]
[1749077509907,0.6557,2607.5,2607.3,4.573]
[1749077510106,0.6557,2607.5,2607.4,0.76661]
[1749077510611,0.76661,2607.4,2607.3,5.33962]
[1749077513508,0.76661,2607.4,2607.3,4.573]
[1749077513911,1.72629767,2607.4,2607.3,4.573]
[1749077514409,0.76664,2607.3,2607.2,3.2078]
[1749077514610,0.76664,2607.3,2607.2,7.7658]
[1749077514914,1.72661765,2607.3,2607.2,8.53247]
[1749077515120,1.72661831,2607.3,2607.2,7.7658]
[1749077515416,0.76664,2607.3,2607.2,7.7658]
[1749077515710,1.99083,2607.4,2607.2,8.53247]
[1749077515913,0.96020793,2607.3,2607.2,8.53247]
[1749077516116,1.99083,2607.4,2607.3,0.76664]
[1749077516316,0.96031903,2607.4,2607.3,0.76664]
[1749077516506,0.6275,2607.6,2607.5,0.76658]
[1749077516818,2.3546383,2607.6,2607.5,0.76658]
[1749077518417,1.5880883,2607.6,2607.5,0.76658]
[1749077519807,1.5880883,2607.6,2607.5,3.97438]
[1749077521117,1.58862709,2607.6,2607.5,3.97438]
[1749077522911,1.91603,2608.1,2607.5,3.97438]
[1749077522912,0.76643,2608.1,2607.5,10.12423]
[1749077523113,1.72798159,2608.0,2607.8,3.97427]
[1749077523411,0.96154159,2607.9,2607.8,3.97427]
[1749077523812,1.72800159,2608.0,2607.8,3.97427]
[1749077524007,0.96154159,2607.9,2607.8,3.97427]
[1749077525421,0.76646,2608.0,2607.9,0.76647]
[1749077525615,1.72821629,2608.0,2607.9,0.76647]
[1749077526421,0.96175629,2608.0,2607.9,0.76647]
[1749077527024,1.72819629,2608.0,2607.9,0.76647]
[1749077527223,0.76647,2607.9,2607.8,3.2078]
[1749077527423,1.72822629,2607.9,2607.8,3.97429]
[1749077527623,0.96175629,2607.9,2607.8,3.97429]
[1749077528124,1.72822629,2607.9,2607.8,3.97429]
[1749077528325,0.96175629,2607.9,2607.8,8.53129]
[1749077528527,0.76647,2607.9,2607.8,8.53129]
[1749077528720,4.16955629,2607.9,2607.8,4.557]
[1749077529027,0.76664,2607.3,2607.2,3.2078]
[1749077529416,1.72838629,2607.4,2607.2,3.97445]
[1749077529617,1.61185629,2607.3,2607.2,3.97445]
[1749077529813,2.37920595,2607.3,2607.2,3.97445]
[1749077530022,2.37920595,2607.3,2607.2,4.35845]
[1749077531326,2.37920595,2607.3,2607.2,3.5918]
[1749077531929,2.37920595,2607.3,2607.2,4.35847]
[1749077532928,2.37920595,2607.3,2607.2,3.5918]
[1749077533130,2.37920595,2607.3,2607.2,0.384]
[1749077533523,5.58700595,2607.3,2607.2,0.384]
[1749077533719,15.92630595,2607.3,2607.2,0.384]
[1749077533925,17.20390595,2607.3,2607.2,0.384]
[1749077534224,11.95177482,2607.3,2607.2,1.15067]
[1749077534628,10.68637482,2607.3,2607.2,1.15067]
[1749077534828,10.68637482,2607.3,2607.2,2.41277]
[1749077535222,11.45301482,2607.3,2607.2,0.384]
[1749077535628,11.45301482,2607.3,2607.2,4.942]
[1749077536631,9.724,2607.3,2607.2,5.70867]
[1749077536834,10.68671339,2607.3,2607.2,5.70867]
[1749077537036,11.45335339,2607.3,2607.2,5.70867]
[1749077537634,10.68671339,2607.3,2607.2,5.70867]
[1749077538645,9.724,2607.3,2607.2,5.70867]
[1749077538841,10.68627037,2607.3,2607.2,5.70867]
[1749077539542,11.45291037,2607.3,2607.2,5.70867]
[1749077540048,10.68627037,2607.3,2607.2,5.70867]
[1749077540345,9.724,2607.3,2607.2,5.70867]
[1749077540740,10.68608515,2607.3,2607.2,5.70867]
[1749077541247,9.724,2607.3,2607.2,5.70867]
[1749077542544,10.49064,2607.3,2607.2,5.70867]
[1749077543847,10.68626243,2607.3,2607.2,5.70867]
[1749077544552,11.45290243,2607.3,2607.2,5.70867]
[1749077544846,10.68626243,2607.3,2607.2,5.70867]
[1749077548352,11.45290243,2607.3,2607.2,5.70867]
[1749077548855,10.68626243,2607.3,2607.2,0.384]
[1749077549055,11.45290243,2607.3,2607.2,4.944]
[1749077549853,11.45290243,2607.3,2607.2,0.384]
[1749077550050,11.45290243,2607.3,2607.2,4.944]
[1749077551458,11.45290243,2607.3,2607.2,0.384]
[1749077552654,0.76667,2607.2,2607.1,5.3267]
[1749077552857,2.37583243,2607.2,2607.1,5.3267]
[1749077555953,3.58413243,2607.2,2607.1,5.3267]
[1749077556458,0.76671,2607.1,2607.0,0.76671]
[1749077556662,2.35577243,2607.1,2607.0,5.32671]
[1749077557556,2.35577243,2607.1,2607.0,4.56]
[1749077558153,3.50583243,2607.1,2606.8,3.59755153]
[1749077558357,1.72899243,2607.0,2606.9,4.56]
[1749077558555,2.97879243,2607.0,2606.9,4.56]
[1749077561156,2.01653,2607.0,2606.9,4.56]
[1749077561461,2.97915047,2607.0,2606.9,4.56]
[1749077561853,0.76676,2606.9,2606.8,4.36434153]
[1749077562053,1.72938047,2606.9,2606.8,8.92534153]
[1749077563162,0.96262047,2606.9,2606.8,8.92534153]
[1749077563560,1.72938047,2606.9,2606.8,8.92534153]
[1749077564856,0.96262047,2606.9,2606.8,8.92534153]
[1749077565354,1.72938047,2606.9,2606.8,8.15855153]
[1749077565754,1.72894331,2606.9,2606.8,7.77455153]
[1749077566458,1.72894331,2606.9,2606.8,8.54134153]
[1749077567962,0.96218331,2606.9,2606.8,8.54134153]
[1749077570172,1.39351,2607.1,2607.0,0.76673]
[1749077570465,2.35608876,2607.1,2607.0,0.76673]
[1749077570668,0.76674,2607.0,2606.9,0.76675]